fUST/lending_fUST_20250502
["ID","MTS","AMOUNT","RATE_DAILY","PERIOD"]
[359620017,1746186646814,-527.85,0.00019452,2]
[359620018,1746186646823,-1294.53,0.00019452,2]
[359620019,1746186646832,-400.0,0.00019452,2]
[359620020,1746186646842,-434.7,0.00019452,2]
[359620021,1746186646851,-400.0,0.00019452,2]
[359620022,1746186646861,-868.55,0.00019452,2]
[359620023,1746186646871,-400.0,0.00019452,2]
[359620024,1746186646880,-400.0,0.00019452,2]
[359620025,1746186646891,-400.0,0.00019452,2]
[359620026,1746186646900,-1495.45,0.00019452,2]
[359620027,1746186646910,-400.0,0.00019452,2]
[359620028,1746186646920,-400.0,0.00019452,2]
[359620029,1746186646929,-400.0,0.00019452,2]
[359620030,1746186646940,-968.81,0.00019452,2]
[359620031,1746186646949,-269.42144959,0.00019452,2]
[359620032,1746186646958,-614.72,0.00019452,2]
[359620033,1746186646968,-1045.94,0.00019452,2]
[359620034,1746186646977,-400.0,0.00019452,2]
[359620035,1746186646986,-594.06,0.00019452,2]
[359620036,1746186646995,-491.07,0.00019452,2]
[359620037,1746186647005,-1509.05,0.00019452,2]
[359620038,1746186647015,-2106.12,0.00019452,2]
[359620039,1746186647024,-2080.71,0.00019452,2]
[359620040,1746186647033,-2838.92,0.00019452,2]
[359620041,1746186647043,-400.0,0.00019452,2]
[359620042,1746186647053,-2531.5,0.00019452,2]
[359620043,1746186647063,-400.0,0.00019452,2]
[359620044,1746186647073,-400.0,0.00019452,2]
[359620045,1746186647082,-500.0,0.00019452,2]
[359620046,1746186647092,-400.0,0.00019452,2]
[359620047,1746186647102,-539.54,0.00019452,2]
[359620048,1746186647112,-400.0,0.00019452,2]
[359620049,1746186647122,-543.18,0.00019452,2]
[359620050,1746186647131,-2053.87,0.00019452,2]
[359620051,1746186647141,-1065.32,0.00019452,2]
[359620052,1746186647152,-400.0,0.00019452,2]
[359620053,1746186647162,-6985.45,0.00019452,2]
[359620054,1746186647171,-797.01,0.00019452,2]
[359620055,1746186647181,-400.0,0.00019452,2]
[359620056,1746186647191,-400.0,0.00019452,2]
[359620057,1746186647201,-400.0,0.00019452,2]
[359620058,1746186647210,-683.72,0.00019452,2]
[359620059,1746186647220,-2140.12,0.00019452,2]
[359620060,1746186647229,-1071.47,0.00019452,2]
[359620061,1746186647239,-865.72,0.00019452,2]
[359620062,1746186647249,-571.44,0.00019452,2]
[359620063,1746186647259,-1778.57,0.00019452,2]
[359620064,1746186647280,-400.0,0.00019452,2]
[359620065,1746186647291,-400.0,0.00019452,2]
[359620066,1746186647301,-400.0,0.00019452,2]
[359620067,1746186647311,-400.0,0.00019452,2]
[359620068,1746186647321,-636.02,0.00019452,2]
[359620069,1746186647331,-400.0,0.00019452,2]
[359620070,1746186647342,-2651.72,0.00019452,2]
[359620071,1746186647352,-400.0,0.00019452,2]
[359620072,1746186647362,-577.39,0.00019452,2]
[359620073,1746186647372,-2363.62,0.00019452,2]
[359620074,1746186647382,-571.5,0.00019452,2]
[359620075,1746186647392,-1876.1,0.00019452,2]
[359620076,1746186647402,-1350.35,0.00019452,2]
[359620077,1746186647411,-400.0,0.00019452,2]
[359620078,1746186647421,-1953.57,0.00019452,2]
[359620079,1746186647431,-896.66,0.00019452,2]
[359620080,1746186647441,-403.38210597,0.00019452,2]
[359620081,1746186647451,-605.14,0.00019452,2]
[359620082,1746186647461,-808.6,0.00019452,2]
[359620083,1746186647471,-400.0,0.00019452,2]
[359620084,1746186647481,-571.97,0.00019452,2]
[359620085,1746186647491,-400.0,0.00019452,2]
[359620086,1746186647500,-535.43944528,0.00019452,2]
[359620087,1746186647509,-1543.03,0.00019452,2]
[359620088,1746186647520,-400.0,0.00019452,2]
[359620089,1746186647530,-400.0,0.00019452,2]
[359620090,1746186647539,-400.0,0.00019452,2]
[359620091,1746186647549,-400.0,0.00019452,2]
[359620092,1746186647559,-549.56,0.00019452,2]
[359620093,1746186647568,-1202.85,0.00019452,2]
[359620094,1746186647578,-4894.55,0.00019452,2]
[359620095,1746186647588,-886.4,0.00019452,2]
[359620096,1746186647598,-499.65,0.00019452,2]
[359620097,1746186647608,-400.0,0.00019452,2]
[359620098,1746186647617,-400.0,0.00019452,2]
[359620099,1746186647627,-500.0,0.00019473,2]
[359620100,1746186647638,-500.0,0.00019473,2]
[359620101,1746186647648,-500.0,0.00019473,2]
[359620102,1746186647658,-500.0,0.00019473,2]
[359620103,1746186647667,-500.0,0.00019473,2]
[359620104,1746186647676,-500.0,0.00019473,2]
[359620105,1746186647686,-500.0,0.00019473,2]
[359620106,1746186647695,-500.0,0.00019473,2]
[359620107,1746186647705,-500.0,0.00019473,2]
[359620108,1746186647714,-500.0,0.00019473,2]
[359620109,1746186647725,-500.0,0.00019473,2]
[359620110,1746186647734,-500.0,0.00019473,2]
[359620111,1746186647745,-500.0,0.00019473,2]
[359620112,1746186647754,-500.0,0.00019473,2]
[359620113,1746186647764,-300.0,0.00019473,2]
[359620114,1746186647774,-500.0,0.00019473,2]
[359620115,1746186647783,-500.0,0.00019473,2]
[359620116,1746186647793,-500.0,0.00019473,2]
[359620117,1746186647803,-500.0,0.00019473,2]
[359620118,1746186647814,-420.0,0.00019654,2]
[359620119,1746186647826,-500.0,0.00019698,2]
[359620120,1746186647835,-400.0,0.00019726,2]
[359620121,1746186647844,-288.35164962,0.00019726,2]
[359620122,1746186647855,-400.0,0.00019726,2]
[359620123,1746186647864,-264.12162851,0.00019726,2]
[359620124,1746186647873,-400.0,0.00019726,2]
[359620125,1746186647883,-400.0,0.00019726,2]
[359620126,1746186647897,-400.0,0.00019726,2]
[359620127,1746186647908,-400.0,0.00019726,2]
[359620128,1746186647918,-423.69,0.00019726,2]
[359620129,1746186647927,-400.0,0.00019726,2]
[359620130,1746186647937,-400.0,0.00019726,2]
[359620131,1746186647946,-400.0,0.00019726,2]
[359620132,1746186647956,-400.0,0.00019726,2]
[359620133,1746186647966,-400.0,0.00019726,2]
[359620134,1746186647975,-400.0,0.00019726,2]
[359620135,1746186647986,-622.88,0.00019726,2]
[359620136,1746186647995,-400.0,0.00019726,2]
[359620137,1746186648005,-510.57,0.00019726,2]
[359620138,1746186648015,-400.0,0.00019726,2]
[359620139,1746186648025,-400.0,0.00019726,2]
[359620140,1746186648034,-400.0,0.00019726,2]
[359620141,1746186648044,-400.0,0.00019726,2]
[359620142,1746186648054,-400.0,0.00019726,2]
[359620143,1746186648064,-400.0,0.00019726,2]
[359620144,1746186648075,-400.0,0.00019726,2]
[359620145,1746186648084,-400.0,0.00019726,2]
[359620146,1746186648094,-400.0,0.00019726,2]
[359620147,1746186648105,-438.74,0.00019726,2]
[359620148,1746186648115,-577.17,0.00019726,2]
[359620149,1746186648125,-400.0,0.00019726,2]
[359620150,1746186648136,-421.31,0.00019726,2]
[359620151,1746186648146,-1179.12,0.00019726,2]
[359620152,1746186648158,-648.0,0.00019726,2]
[359620153,1746186648168,-277.56516137,0.00019726,2]
[359620154,1746186648179,-199.01534695,0.00019726,2]
[359620155,1746186648189,-400.0,0.00019726,2]
[359620156,1746186648199,-400.0,0.00019726,2]
[359620157,1746186648210,-400.0,0.00019726,2]
[359620158,1746186648220,-400.0,0.00019726,2]
[359620159,1746186648230,-400.0,0.00019726,2]
[359620160,1746186648239,-1886.08,0.00019726,2]
[359620161,1746186648249,-400.0,0.00019726,2]
[359620162,1746186648260,-400.0,0.00019726,2]
[359620163,1746186648269,-400.0,0.00019726,2]
[359620164,1746186648279,-400.0,0.00019726,2]
[359620165,1746186648289,-400.0,0.00019726,2]
[359620166,1746186648299,-599.84,0.00019726,2]
[359620167,1746186648310,-400.0,0.00019726,2]
[359620168,1746186648320,-400.0,0.00019726,2]
[359620169,1746186648330,-1037.11,0.00019726,2]
[359620170,1746186648340,-400.0,0.00019726,2]
[359620171,1746186648351,-400.0,0.00019726,2]
[359620172,1746186648361,-611.45,0.00019726,2]
[359620173,1746186648371,-400.0,0.00019726,2]
[359620174,1746186648381,-1046.86,0.00019726,2]
[359620175,1746186648391,-662.9,0.00019726,2]
[359620176,1746186648400,-695.51,0.00019726,2]
[359620177,1746186648411,-400.0,0.00019726,2]
[359620178,1746186648421,-400.0,0.00019726,2]
[359620179,1746186648431,-400.0,0.00019726,2]
[359620180,1746186648440,-650.59,0.00019726,2]
[359620181,1746186648450,-400.0,0.00019726,2]
[359620182,1746186648460,-400.0,0.00019726,2]
[359620183,1746186648470,-400.0,0.00019726,2]
[359620184,1746186648481,-279.1514496,0.00019726,2]
[359620185,1746186648490,-400.0,0.00019726,2]
[359620186,1746186648500,-965.89,0.00019726,2]
[359620187,1746186648510,-1427.8,0.00019726,2]
[359620188,1746186648519,-400.0,0.00019726,2]
[359620189,1746186648531,-747.04,0.00019726,2]
[359620190,1746186648541,-400.0,0.00019726,2]
[359620191,1746186648551,-926.82,0.00019726,2]
[359620192,1746186648560,-400.0,0.00019726,2]
[359620193,1746186648570,-400.0,0.00019726,2]
[359620194,1746186648580,-725.7,0.00019726,2]
[359620195,1746186648590,-402.92,0.00019726,2]
[359620196,1746186648600,-1150.81,0.00019726,2]
[359620197,1746186648609,-400.0,0.00019726,2]
[359620198,1746186648619,-400.0,0.00019726,2]
[359620199,1746186648628,-400.99,0.00019726,2]
[359620200,1746186648637,-562.15,0.00019726,2]
[359620201,1746186648647,-400.0,0.00019726,2]
[359620202,1746186648657,-400.0,0.00019726,2]
[359620203,1746186648666,-734.15,0.00019726,2]
[359620204,1746186648675,-400.0,0.00019726,2]
[359620205,1746186648685,-456.28,0.00019726,2]
[359620206,1746186648695,-400.0,0.00019726,2]
[359620207,1746186648704,-858.78,0.00019726,2]
[359620208,1746186648714,-509.88,0.00019726,2]
[359620209,1746186648723,-510.59,0.00019726,2]
[359620210,1746186648733,-476.81,0.00019726,2]
[359620211,1746186648743,-400.0,0.00019726,2]
[359620212,1746186648752,-661.49,0.00019726,2]
[359620213,1746186648762,-1240.91,0.00019726,2]
[359620214,1746186648771,-400.0,0.00019726,2]
[359620215,1746186648781,-581.96,0.00019726,2]
[359620216,1746186648791,-1155.35,0.00019726,2]
[359620217,1746186648800,-495.7,0.00019726,2]
[359620218,1746186648810,-400.0,0.00019726,2]
[359620219,1746186648823,-400.0,0.00019726,2]
[359620220,1746186648832,-1499.66,0.00019726,2]
[359620221,1746186648841,-400.0,0.00019726,2]
[359620222,1746186648851,-468.94,0.00019726,2]
[359620223,1746186648861,-400.0,0.00019726,2]
[359620224,1746186648871,-400.0,0.00019726,2]
[359620225,1746186648881,-2571.74,0.00019726,2]
[359620226,1746186648891,-561.99,0.00019726,2]
[359620227,1746186648900,-400.0,0.00019726,2]
[359620228,1746186648910,-316.30355467,0.00019726,2]
[359620229,1746186648920,-400.0,0.00019726,2]
[359620230,1746186648929,-650.81,0.00019726,2]
[359620231,1746186648939,-400.0,0.00019726,2]
[359620232,1746186648948,-455.65148939,0.00019726,2]
[359620233,1746186648958,-400.0,0.00019726,2]
[359620234,1746186648967,-400.0,0.00019726,2]
[359620235,1746186648977,-400.0,0.00019726,2]
[359620236,1746186648986,-400.0,0.00019726,2]
[359620237,1746186648996,-1006.72,0.00019726,2]
[359620238,1746186649006,-1521.26,0.00019726,2]
[359620239,1746186649016,-1546.21,0.00019726,2]
[359620240,1746186649026,-400.0,0.00019726,2]
[359620241,1746186649035,-400.0,0.00019726,2]
[359620242,1746186649045,-400.0,0.00019726,2]
[359620243,1746186649055,-400.0,0.00019726,2]
[359620244,1746186649065,-6232.77,0.00019726,2]
[359620245,1746186649075,-400.0,0.00019726,2]
[359620246,1746186649085,-400.0,0.00019726,2]
[359620247,1746186649095,-609.45,0.00019726,2]
[359620248,1746186649105,-592.95,0.00019726,2]
[359620249,1746186649115,-870.29,0.00019726,2]
[359620250,1746186649125,-400.0,0.00019726,2]
[359620251,1746186649135,-400.0,0.00019726,2]
[359620252,1746186649145,-400.0,0.00019726,2]
[359620253,1746186649156,-514.48,0.00019726,2]
[359620254,1746186649167,-489.95,0.00019726,2]
[359620255,1746186649176,-400.0,0.00019726,2]
[359620256,1746186649187,-529.54462458,0.00019726,2]
[359620257,1746186649197,-608.26,0.00019726,2]
[359620258,1746186649207,-714.58,0.00019726,2]
[359620259,1746186649218,-400.0,0.00019726,2]
[359620260,1746186649237,-400.0,0.00019726,2]
[359620261,1746186649250,-400.0,0.00019726,2]
[359620262,1746186649261,-509.32,0.00019726,2]
[359620263,1746186649272,-875.7,0.00019726,2]
[359620264,1746186649282,-250.44293964,0.00019726,2]
[359620265,1746186649293,-1572.15,0.00019726,2]
[359620266,1746186649303,-400.0,0.00019726,2]
[359620267,1746186649315,-1066.5,0.00019726,2]
[359620268,1746186649325,-880.37,0.00019726,2]
[359620269,1746186649336,-2383.89,0.00019726,2]
[359620270,1746186649347,-400.0,0.00019726,2]
[359620271,1746186649357,-400.0,0.00019726,2]
[359620272,1746186649367,-312.53775467,0.00019726,2]
[359620273,1746186649378,-825.0,0.00019726,2]
[359620274,1746186649390,-150.19481207,0.00019726,2]
[359620275,1746186649401,-763.89,0.00019726,2]
[359620276,1746186649412,-664.37,0.00019726,2]
[359620277,1746186649422,-1506.39,0.00019726,2]
[359620278,1746186649433,-482.84900647,0.00019726,2]
[359620279,1746186649443,-609.76,0.00019726,2]
[359620280,1746186649454,-1191.47,0.00019726,2]
[359620281,1746186649464,-400.0,0.00019726,2]
[359620282,1746186649475,-400.0,0.00019726,2]
[359620283,1746186649485,-400.0,0.00019726,2]
[359620284,1746186649496,-400.0,0.00019726,2]
[359620285,1746186649506,-111.29340863,0.00019726,2]
[359620286,1746186649909,-1923.74659137,0.00019726,2]
[359620287,1746186649919,-2625.14,0.00019726,2]
[359620288,1746186649930,-1742.66,0.00019726,2]
[359620289,1746186649940,-400.0,0.00019726,2]
[359620290,1746186649950,-400.0,0.00019726,2]
[359620291,1746186649960,-5606.22,0.00019726,2]
[359620292,1746186649970,-400.0,0.00019726,2]
[359620293,1746186649980,-2124.58,0.00019726,2]
[359620294,1746186649990,-400.0,0.00019726,2]
[359620295,1746186650000,-400.25,0.00019726,2]
[359620296,1746186650011,-400.0,0.00019726,2]
[359620297,1746186650021,-639.24,0.00019726,2]
[359620298,1746186650031,-458.97,0.00019726,2]
[359620299,1746186650041,-3073.17,0.00019726,2]
[359620300,1746186650055,-400.0,0.00019726,2]
[359620301,1746186650065,-246.94978467,0.00019726,2]
[359620302,1746186650075,-400.0,0.00019726,2]
[359620303,1746186650086,-399.74249645,0.00019726,2]
[359620304,1746186650096,-400.0,0.00019726,2]
[359620305,1746186650107,-400.0,0.00019726,2]
[359620306,1746186650118,-4878.62,0.00019726,2]
[359620307,1746186650128,-526.46,0.00019726,2]
[359620308,1746186650138,-400.0,0.00019726,2]
[359620309,1746186650149,-400.0,0.00019726,2]
[359620310,1746186650163,-400.0,0.00019726,2]
[359620311,1746186650174,-400.0,0.00019726,2]
[359620312,1746186650185,-400.0,0.00019726,2]
[359620313,1746186650195,-400.0,0.00019726,2]
[359620314,1746186650205,-400.0,0.00019726,2]
[359620315,1746186650216,-151.0,0.00019726,2]
[359620316,1746186650226,-2109.88,0.00019726,2]
[359620317,1746186650237,-622.53,0.00019726,2]
[359620318,1746186650247,-2584.58,0.00019726,2]
[359620319,1746186650258,-400.0,0.00019726,2]
[359620320,1746186650269,-400.0,0.00019726,2]
[359620321,1746186650279,-670.51,0.00019726,2]
[359620322,1746186650289,-2728.13,0.00019726,2]
[359620323,1746186650300,-683.36,0.00019726,2]
[359620324,1746186650311,-400.0,0.00019726,2]
[359620325,1746186650322,-498.75,0.00019726,2]
[359620326,1746186650332,-579.93,0.00019726,2]
[359620327,1746186650341,-1419.57,0.00019726,2]
[359620328,1746186650352,-524.24,0.00019726,2]
[359620329,1746186650362,-400.0,0.00019726,2]
[359620330,1746186650373,-2345.86,0.00019726,2]
[359620331,1746186650383,-400.0,0.00019726,2]
[359620332,1746186650394,-400.0,0.00019726,2]
[359620333,1746186650404,-400.0,0.00019726,2]
[359620334,1746186650414,-527.85,0.00019726,2]
[359620335,1746186650424,-1294.53,0.00019726,2]
[359620336,1746186650435,-283.46,0.00019726,2]
[359620337,1746186650445,-434.7,0.00019726,2]
[359620338,1746186650455,-400.0,0.00019726,2]
[359620339,1746186650466,-868.55,0.00019726,2]
[359620340,1746186650476,-400.0,0.00019726,2]
[359620341,1746186650486,-400.0,0.00019726,2]
[359620342,1746186650498,-400.0,0.00019726,2]
[359620343,1746186650509,-1495.45,0.00019726,2]
[359620344,1746186650519,-400.0,0.00019726,2]
[359620345,1746186650529,-400.0,0.00019726,2]
[359620346,1746186650539,-432.66794337,0.00019726,2]
[359620347,1746186650550,-968.81,0.00019726,2]
[359620348,1746186650560,-614.72,0.00019726,2]
[359620349,1746186650571,-1045.94,0.00019726,2]
[359620350,1746186650582,-400.0,0.00019726,2]
[359620351,1746186650592,-594.06,0.00019726,2]
[359620352,1746186650603,-491.07,0.00019726,2]
[359620353,1746186650613,-1509.05,0.00019726,2]
[359620354,1746186650623,-2106.12,0.00019726,2]
[359620355,1746186650633,-2080.71,0.00019726,2]
[359620356,1746186650643,-400.0,0.00019726,2]
[359620357,1746186650653,-2531.5,0.00019726,2]
[359620358,1746186650664,-285.2923604,0.00019726,2]
[359620359,1746186650674,-400.0,0.00019726,2]
[359620360,1746186650685,-500.0,0.00019726,2]
[359620361,1746186650695,-2838.92,0.00019726,2]
[359620362,1746186650706,-400.0,0.00019726,2]
[359620363,1746186650717,-539.54,0.00019726,2]
[359620364,1746186650727,-400.0,0.00019726,2]
[359620365,1746186650738,-543.18,0.00019726,2]
[359620366,1746186650748,-2053.87,0.00019726,2]
[359620367,1746186650759,-1065.32,0.00019726,2]
[359620368,1746186650770,-400.0,0.00019726,2]
[359620369,1746186650780,-6985.45,0.00019726,2]
[359620370,1746186650791,-797.01,0.00019726,2]
[359620371,1746186650802,-400.0,0.00019726,2]
[359620372,1746186650815,-400.0,0.00019726,2]
[359620373,1746186650826,-400.0,0.00019726,2]
[359620374,1746186650836,-683.72,0.00019726,2]
[359620375,1746186650846,-2140.12,0.00019726,2]
[359620376,1746186650857,-1071.47,0.00019726,2]
[359620377,1746186650867,-865.72,0.00019726,2]
[359620378,1746186650878,-571.44,0.00019726,2]
[359620379,1746186650889,-1778.57,0.00019726,2]
[359620380,1746186650899,-203.9390223,0.00019726,2]
[359620381,1746186650910,-400.0,0.00019726,2]
[359620382,1746186650920,-400.0,0.00019726,2]
[359620383,1746186650930,-211.15899724,0.00019726,2]
[359620384,1746186650940,-636.02,0.00019726,2]
[359620385,1746186650951,-400.0,0.00019726,2]
[359620386,1746186650961,-1296.26831875,0.00019726,2]
[359620387,1746186651351,-400.0,0.00019178,2]
[359620388,1746186651363,-159.96732441,0.00019452,2]
[359620389,1746186651375,-1355.45168125,0.00019726,2]
[359620390,1746186651386,-400.0,0.00019726,2]
[359620391,1746186651398,-577.39,0.00019726,2]
[359620392,1746186651409,-594.41078934,0.00019726,2]
[359620393,1746186651571,-165.44075881,0.00019178,2]
[359620394,1746186651582,-400.0,0.00019178,2]
[359620395,1746186651594,-1769.20921066,0.00019726,2]
[359620396,1746186651605,-571.5,0.00019726,2]
[359620397,1746186651616,-1876.1,0.00019726,2]
[359620398,1746186651951,-1350.35,0.00019726,2]
[359620399,1746186651963,-400.0,0.00019726,2]
[359620400,1746186651972,-1953.57,0.00019726,2]
[359620401,1746186651983,-845.43590791,0.00019726,2]
[359620402,1746186651995,-51.22409209,0.00019726,2]
[359620403,1746186652005,-605.14,0.00019726,2]
[359620404,1746186652015,-808.6,0.00019726,2]
[359620405,1746186652025,-400.0,0.00019726,2]
[359620406,1746186652035,-571.97,0.00019726,2]
[359620407,1746186652045,-400.0,0.00019726,2]
[359620408,1746186652055,-594.50470791,0.00019726,2]
[359620409,1746186652067,-456.66348368,0.00019726,2]
[359620410,1746186652103,-491.86180841,0.00019726,2]
[359620411,1746186652114,-400.0,0.00019726,2]
[359620412,1746186652123,-400.0,0.00019726,2]
[359620413,1746186652133,-400.0,0.00019726,2]
[359620414,1746186652144,-549.56,0.00019726,2]
[359620415,1746186652154,-703.00720148,0.00019726,2]
[359620416,1746186652166,-499.84279852,0.00019726,2]
[359620417,1746186652176,-70.02719948,0.00019726,2]
[359620418,1746186652188,-4067.92240449,0.00019726,2]
[359620419,1746186652200,-636.64366156,0.00019726,2]
[359620420,1746186722619,300.0,0.00018012,2]
[359620424,1746186902340,300.0,0.00018011,2]
[359620425,1746186902574,300.0,0.00018011,2]
[359620426,1746186902606,300.0,0.00018011,2]
[359620427,1746186902802,300.0,0.00018011,2]
[359620428,1746186910791,1200.0,0.00018011,2]
[359620436,1746187264174,5000.0,0.00021,10]
[359620447,1746187343171,464.0,0.00025,30]
[359620525,1746187832543,-7717.9960492,0.00018234,2]
[359620526,1746187832554,-258.895271,0.00018278,2]
[359620527,1746187832564,-215.0738,0.00018825,2]
[359620529,1746187832575,-1200.0,0.00019173,2]
[359620532,1746187832585,-300.0,0.00019174,2]
[359620535,1746187832596,-171.95843,0.00019174,2]
[359620537,1746187832607,-500.0,0.00019174,2]
[359620541,1746187832616,-500.0,0.00019174,2]
[359620544,1746187832626,-162.0,0.00019174,2]
[359620547,1746187832636,-300.11789025,0.00019174,2]
[359620550,1746187832646,-500.0,0.00019174,2]
[359620552,1746187832656,-500.0,0.00019174,2]
[359620554,1746187832667,-500.0,0.00019174,2]
[359620556,1746187832677,-500.0,0.00019174,2]
[359620558,1746187832688,-500.0,0.00019174,2]
[359620560,1746187832698,-500.0,0.00019174,2]
[359620562,1746187832708,-500.0,0.00019174,2]
[359620564,1746187832718,-500.0,0.00019174,2]
[359620566,1746187832728,-500.0,0.00019174,2]
[359620568,1746187832738,-535.80590651,0.00019174,2]
[359620570,1746187832748,-500.0,0.00019174,2]
[359620572,1746187832758,-500.0,0.00019174,2]
[359620574,1746187832768,-500.0,0.00019174,2]
[359620576,1746187832778,-500.0,0.00019174,2]
[359620577,1746187832788,-241.64523724,0.00019177,2]
[359620578,1746187832798,-81.01653739,0.00019177,2]
[359620579,1746187832810,-418.98346261,0.00019177,2]
[359620580,1746187832819,-510.32727714,0.00019177,2]
[359620581,1746187832829,-400.0,0.00019178,2]
[359620582,1746187832839,-400.0,0.00019178,2]
[359620583,1746187832849,-400.0,0.00019178,2]
[359620584,1746187832859,-400.0,0.00019178,2]
[359620585,1746187832869,-400.0,0.00019178,2]
[359620586,1746187832879,-845.16,0.00019178,2]
[359620587,1746187832889,-1006.95,0.00019178,2]
[359620588,1746187832898,-400.0,0.00019178,2]
[359620589,1746187832907,-400.0,0.00019178,2]
[359620590,1746187832917,-400.0,0.00019178,2]
[359620591,1746187832926,-400.0,0.00019178,2]
[359620592,1746187832936,-751.43,0.00019178,2]
[359620593,1746187832945,-400.0,0.00019178,2]
[359620594,1746187832955,-400.0,0.00019178,2]
[359620595,1746187832966,-415.16043103,0.00019178,2]
[359620596,1746187832975,-400.0,0.00019178,2]
[359620597,1746187832985,-400.0,0.00019178,2]
[359620598,1746187832994,-400.0,0.00019178,2]
[359620599,1746187833004,-400.0,0.00019178,2]
[359620600,1746187833013,-400.0,0.00019178,2]
[359620601,1746187833023,-400.0,0.00019178,2]
[359620602,1746187833032,-400.0,0.00019178,2]
[359620603,1746187833042,-535.02,0.00019178,2]
[359620604,1746187833052,-400.0,0.00019178,2]
[359620605,1746187833061,-400.0,0.00019178,2]
[359620606,1746187833071,-400.0,0.00019178,2]
[359620607,1746187833081,-580.04,0.00019178,2]
[359620608,1746187833091,-400.0,0.00019178,2]
[359620610,1746187833100,-236.61934843,0.00019178,2]
[359620611,1746187833111,-400.0,0.00019178,2]
[359620613,1746187833121,-400.0,0.00019178,2]
[359620615,1746187833130,-400.0,0.00019178,2]
[359620617,1746187833140,-400.0,0.00019178,2]
[359620619,1746187833150,-608.57,0.00019178,2]
[359620621,1746187833160,-408.0651324,0.00019178,2]
[359620623,1746187833168,-569.26,0.00019178,2]
[359620625,1746187833177,-907.47,0.00019178,2]
[359620626,1746187833187,-400.0,0.00019178,2]
[359620627,1746187833196,-1052.5,0.00019178,2]
[359620628,1746187833206,-400.0,0.00019178,2]
[359620629,1746187833215,-400.0,0.00019178,2]
[359620630,1746187833225,-400.0,0.00019178,2]
[359620631,1746187833235,-761.5,0.00019178,2]
[359620632,1746187833244,-771.88,0.00019178,2]
[359620633,1746187833254,-400.0,0.00019178,2]
[359620634,1746187833264,-400.0,0.00019178,2]
[359620635,1746187833274,-400.0,0.00019178,2]
[359620636,1746187833284,-400.0,0.00019178,2]
[359620637,1746187833293,-810.97,0.00019178,2]
[359620638,1746187833304,-400.0,0.00019178,2]
[359620639,1746187833314,-445.66,0.00019178,2]
[359620640,1746187833324,-400.0,0.00019178,2]
[359620641,1746187833334,-653.66,0.00019178,2]
[359620642,1746187833345,-400.0,0.00019178,2]
[359620643,1746187833355,-400.0,0.00019178,2]
[359620644,1746187833366,-400.0,0.00019178,2]
[359620645,1746187833376,-400.0,0.00019178,2]
[359620646,1746187833387,-400.0,0.00019178,2]
[359620647,1746187833398,-491.88,0.00019178,2]
[359620648,1746187833408,-400.0,0.00019178,2]
[359620649,1746187833419,-400.0,0.00019178,2]